bitfinex/quotes_ETHUSD_20250628
["timestamp","ask_amount","ask_price","bid_price","bid_amount"]
[1751110569553,9.5822257,2427.7,2427.6,0.002]
[1751110569755,0.2056,2427.7,2427.6,0.7595]
[1751110569949,2.67700009,2427.8,2427.6,0.7595]
[1751110571024,8.36979017,2427.8,2427.6,0.7595]
[1751110571952,2.67700009,2427.8,2427.6,0.7595]
[1751110572133,8.36979017,2427.8,2427.6,0.7595]
[1751110581391,2.47147505,2427.7,2427.6,0.7595]
[1751110582375,2.47147505,2427.7,2427.6,0.002]
[1751110587724,3.72279993,2427.7,2427.6,0.002]
[1751110587886,3.92839993,2427.7,2427.6,0.002]
[1751110588602,9.62119001,2427.7,2427.6,0.002]
[1751110598472,8.36986513,2427.7,2427.6,0.002]
[1751110600371,0.2056,2427.7,2427.6,0.002]
[1751110620885,8.36986513,2427.7,2427.6,0.002]
[1751110633210,5.89839008,2427.7,2427.6,0.002]
[1751110633409,8.36986513,2427.7,2427.6,0.002]
[1751110637714,5.89839008,2427.7,2427.6,0.002]
[1751110638018,8.36986513,2427.7,2427.6,0.002]
[1751110642018,0.2056,2427.7,2427.6,0.002]
[1751110642202,10.0,2428.1,2427.7,0.8187]
[1751110642203,2.67668726,2428.1,2427.7,0.8187]
[1751110642404,0.2056,2428.1,2427.7,3.29016831]
[1751110643397,12.4710198,2428.2,2427.8,2.47136411]
[1751110643605,11.8776,2428.2,2427.8,2.67696411]
[1751110643908,11.8776,2428.2,2427.9,0.8187]
[1751110645732,10.2056,2428.2,2427.9,0.8187]
[1751110645889,11.8776,2428.2,2427.9,0.8187]
[1751110646399,14.34857791,2428.2,2427.9,0.8187]
[1751110648917,11.8776,2428.2,2427.9,0.8187]
[1751110650718,5.69279008,2428.1,2427.9,0.8187]
[1751110651032,8.16385824,2428.1,2427.9,0.8187]
[1751110651529,5.69279008,2428.1,2427.9,0.8187]
[1751110663161,10.9765438,2428.1,2427.8,0.2056]
[1751110663322,2.67678351,2428.0,2427.6,0.8326]
[1751110666230,5.69279008,2427.9,2427.6,0.8326]
[1751110666433,8.16406446,2427.9,2427.6,0.8326]
[1751110666644,5.69279008,2427.9,2427.6,0.8326]
[1751110666929,2.67682193,2428.0,2427.6,0.8326]
[1751110667141,8.36961201,2428.0,2427.6,0.8326]
[1751110674052,9.31745055,2428.0,2427.6,0.8326]
[1751110677580,9.31741094,2428.0,2427.6,3.30417414]
[1751110679183,9.31741094,2428.0,2427.6,0.8326]
[1751110680983,3.62462086,2428.0,2427.6,0.8326]
[1751110681186,9.31741094,2428.0,2427.6,0.8326]
[1751110684396,9.31741094,2428.0,2427.6,3.3041684]
[1751110685092,8.3695724,2428.0,2427.6,3.3041684]
[1751110690396,5.89839008,2428.0,2427.6,3.3041684]
[1751110691412,8.36956527,2428.0,2427.6,3.3041684]
[1751110695710,5.89839008,2428.0,2427.6,0.8326]
[1751110695915,8.10295283,2428.0,2427.6,0.8326]
[1751110696305,2.47128109,2427.9,2427.6,0.8326]
[1751110697015,8.36962065,2428.0,2427.6,0.8326]
[1751110698693,8.36962065,2428.0,2427.6,3.30417595]
[1751110699525,5.89839008,2428.0,2427.6,3.30417595]
[1751110701925,5.89839008,2428.0,2427.7,3.25953253]
[1751110702096,5.89839008,2428.0,2427.7,0.7881]
[1751110705821,5.89839008,2428.0,2427.7,3.25957334]
[1751110706935,5.89839008,2428.0,2427.7,0.7881]
[1751110707630,5.89839008,2428.0,2427.7,3.25957168]
[1751110707929,1.671,2428.1,2427.7,3.25951885]
[1751110708110,1.8766,2428.1,2427.7,3.46511885]
[1751110708512,1.8766,2428.1,2427.8,0.7639]
[1751110711801,4.34767185,2428.1,2427.8,0.7639]
[1751110714944,6.68076509,2428.1,2427.8,0.7639]
[1751110715547,5.69279008,2428.0,2427.8,0.7639]
[1751110720869,1.8766,2428.1,2427.8,0.7639]
[1751110721072,1.8766,2428.1,2427.8,3.23522041]
[1751110722772,0.2056,2428.1,2427.8,3.23525323]
[1751110722975,11.8766,2428.3,2427.9,3.49457146]
[1751110725043,14.34746729,2428.3,2427.9,3.49457146]
[1751110726285,11.8766,2428.3,2427.9,3.49457146]
[1751110728286,11.8766,2428.3,2427.9,3.494521]
[1751110729112,14.34746537,2428.3,2427.9,3.494521]
[1751110734312,5.69279008,2428.2,2427.9,3.494521]
[1751110745250,14.20275496,2428.3,2427.9,3.494521]
[1751110745412,19.89554504,2428.3,2427.9,3.494521]
[1751110745808,22.36642142,2428.3,2427.9,3.494521]
[1751110746008,22.36642142,2428.3,2427.9,1.0233]
[1751110746555,19.89554504,2428.3,2427.9,3.49455336]
[1751110747957,0.2056,2428.3,2427.9,1.0233]
[1751110748267,0.2056,2428.3,2428.0,2.47110608]
[1751110755147,0.2056,2428.3,2427.9,3.49453044]
[1751110756574,5.89839008,2428.3,2427.9,3.49453044]
[1751110757479,5.89839008,2428.3,2428.0,2.4711689]
[1751110757893,5.89839008,2428.3,2427.9,3.49451371]
[1751110759450,5.89839008,2428.3,2428.0,2.47116295]
[1751110759873,5.89839008,2428.3,2427.9,3.49451427]
[1751110763503,5.89839008,2428.3,2427.9,1.0233]
[1751110763717,5.89839008,2428.3,2427.9,3.49453033]
[1751110767601,0.2056,2428.3,2428.0,2.47113372]
[1751110767902,0.2056,2428.3,2427.9,3.49451381]
[1751110768195,0.2056,2428.3,2428.0,2.47116968]
[1751110768400,2.4216,2428.5,2427.9,1.41427995]
[1751110768600,2.4216,2428.5,2427.7,5.69279008]
[1751110768601,1.671,2428.5,2428.2,2.6765631]
[1751110769005,0.2056,2428.6,2428.3,2.47077872]
[1751110769301,0.2056,2428.6,2428.2,0.2056]
[1751110769302,10.7831,2428.7,2428.4,2.47074849]
[1751110769503,18.74342532,2428.7,2428.4,2.47074849]
[1751110770002,18.74342532,2428.7,2428.3,2.67640175]
[1751110770204,16.68149008,2428.7,2428.3,2.67640175]
[1751110770904,15.90039008,2428.7,2428.3,2.67640175]
[1751110774606,0.2076,2428.7,2428.4,2.47070295]
[1751110776018,0.002,2428.7,2428.3,3.26145264]
[1751110776202,0.002,2428.7,2428.5,0.2056]
[1751110777514,0.002,2428.7,2428.5,2.67625998]
[1751110778010,0.002,2428.7,2428.5,0.2056]
[1751110780214,0.002,2428.7,2428.5,2.67625828]
[1751110784316,0.002,2428.7,2428.5,0.2056]
[1751110793625,0.002,2428.7,2428.6,2.47055916]
[1751110802046,0.002,2428.7,2428.5,3.48878331]
[1751110802451,0.002,2428.7,2428.6,2.47055916]
[1751110802824,0.002,2428.7,2428.5,3.48881489]
[1751110803461,0.002,2428.7,2428.5,2.67625266]
[1751110803754,0.002,2428.7,2428.5,2.67625092]
[1751110805855,0.002,2428.7,2428.5,0.2056]
[1751110807655,0.002,2428.7,2428.5,2.6762501]
[1751110807863,0.002,2428.7,2428.5,0.2056]
[1751110811080,5.69279008,2428.6,2428.3,2.47082289]
[1751110811238,5.69279008,2428.4,2428.3,2.67642289]
[1751110811867,6.51229008,2428.6,2428.3,2.67642289]
[1751110818866,8.98286281,2428.6,2428.3,0.2056]
[1751110819065,5.69279008,2428.4,2428.3,0.2056]
[1751110819391,6.51229008,2428.4,2428.1,0.2056]
[1751110820262,6.51229008,2428.4,2428.1,2.67665855]
[1751110821869,6.51229008,2428.4,2428.1,0.2056]
[1751110822659,6.51229008,2428.4,2428.1,2.67665758]
[1751110825080,6.51229008,2428.4,2428.1,0.2056]
[1751110825295,5.69279008,2428.2,2428.0,0.2056]
[1751110825474,0.7854,2428.1,2427.7,9.07143609]
[1751110825672,5.69279008,2428.0,2427.8,0.2056]
[1751110826561,3.25647586,2428.1,2427.8,0.2056]
[1751110826985,0.7854,2428.1,2427.8,0.2056]
[1751110829461,3.25646802,2428.1,2427.8,0.2056]
[1751110834597,0.7854,2428.1,2427.8,0.2056]
[1751110835705,0.7854,2428.1,2427.8,2.67695864]
[1751110836401,0.7854,2428.1,2427.8,0.2056]
[1751110837000,0.7854,2428.1,2427.8,2.67697017]
[1751110840509,0.7854,2428.1,2427.8,0.2056]
[1751110840813,0.7854,2428.1,2427.8,2.67696811]
[1751110841213,0.7854,2428.1,2427.9,2.47124805]
[1751110841380,0.2056,2428.2,2427.9,2.47124805]
[1751110847013,0.2056,2428.2,2428.1,2.47106791]
[1751110847188,0.2056,2428.4,2428.1,2.47106791]
[1751110847580,0.2056,2428.4,2428.2,2.47096187]
[1751110849317,0.2056,2428.4,2428.1,9.07501312]
[1751110855831,0.2056,2428.4,2428.1,6.604]
[1751110856038,1.64072617,2428.4,2428.1,6.604]
[1751110856447,1.64072617,2428.4,2428.1,9.07506264]
[1751110856662,1.64072617,2428.4,2428.1,6.604]
[1751110862547,4.11150755,2428.4,2428.1,6.604]
[1751110862762,4.89090755,2428.4,2428.1,6.604]
[1751110862960,1.48909075,2428.3,2428.1,6.604]
[1751110865860,12.42012617,2428.4,2428.1,6.604]
[1751110866235,14.89089834,2428.4,2428.1,6.604]
[1751110868616,5.69950377,2428.3,2428.1,6.604]
[1751110873484,0.2056,2428.4,2428.1,7.4176]
[1751110878669,2.29023336,2428.4,2428.1,7.4176]
[1751110895619,0.2056,2428.4,2428.1,7.4176]
[1751110896735,0.2056,2428.4,2428.1,0.8136]
[1751110897034,0.2056,2428.4,2428.2,6.599]
[1751110899131,2.67636496,2428.4,2428.2,6.599]
[1751110900605,5.69950377,2428.3,2428.2,6.599]
[1751110903223,5.69950377,2428.3,2428.1,0.8136]
[1751110908041,8.17043347,2428.3,2428.0,0.2056]
[1751110908239,5.69950377,2428.1,2428.0,0.2056]
[1751110914456,5.69950377,2428.3,2428.0,0.2056]
[1751110917258,3.49590863,2428.4,2428.0,2.6767622]
[1751110917431,9.1954124,2428.4,2428.0,2.6767622]
[1751110917632,11.36201538,2428.4,2428.0,2.6767622]
[1751110918062,10.54251538,2428.4,2428.0,3.4363622]
[1751110918466,10.54251538,2428.4,2428.0,0.9652]
[1751110922365,2.47086532,2428.3,2428.0,0.9652]
[1751110922662,10.54254388,2428.4,2428.0,0.9652]
[1751110922869,1.30132304,2428.3,2428.0,0.9652]
[1751110924459,3.77219821,2428.3,2428.0,0.9652]
[1751110926064,1.30132304,2428.3,2428.0,0.9652]
[1751110930671,1.30132304,2428.3,2428.0,3.43636637]
[1751110930963,10.54252576,2428.4,2428.0,3.43636637]
[1751110933974,10.54252576,2428.4,2428.0,0.9652]
[1751110934743,10.54252576,2428.4,2428.0,3.43636603]
[1751110935644,10.54252576,2428.4,2428.0,0.9652]
[1751110938483,10.54252576,2428.4,2428.0,3.43635627]
[1751110942400,8.07170675,2428.4,2428.0,3.43635627]
[1751110944800,10.54248118,2428.4,2428.0,3.43635627]
[1751110954425,8.07170675,2428.4,2428.0,0.2056]
[1751110954720,11.674,2428.7,2428.3,3.22436439]
[1751110954878,11.8796,2428.7,2428.3,3.22436439]
[1751110955082,11.8796,2428.7,2428.4,0.7535]
[1751110957386,14.35006338,2428.7,2428.4,0.7535]
[1751110958218,11.8796,2428.7,2428.4,0.7535]
[1751110960124,14.3500637,2428.7,2428.4,0.7535]
[1751110962432,2.47057438,2428.6,2428.4,0.7535]
[1751110962628,14.35010219,2428.7,2428.4,0.7535]
[1751110963738,2.47057339,2428.6,2428.4,0.7535]
[1751110964439,10.0,2428.5,2428.4,0.7535]
[1751110970749,12.4706609,2428.5,2428.4,0.7535]
[1751110971548,10.0,2428.5,2428.4,0.7535]
[1751110973844,12.4706609,2428.5,2428.4,0.7535]
[1751110974850,12.4706609,2428.5,2428.2,1.031]
[1751110975851,5.69950377,2428.4,2428.2,0.2056]
[1751110976051,8.17027392,2428.4,2428.2,0.2056]
[1751110977544,5.69950377,2428.4,2428.2,0.2056]
[1751110978861,8.17028132,2428.4,2428.2,0.2056]
[1751110979235,5.69950377,2428.4,2428.2,0.2056]
[1751110981062,8.17028095,2428.4,2428.2,0.2056]
[1751110982486,5.69950377,2428.4,2428.2,0.2056]
[1751110988086,8.17027396,2428.4,2428.2,0.2056]
[1751110988257,5.69950377,2428.4,2428.2,0.2056]
[1751110989490,12.4707164,2428.5,2428.2,0.2056]
[1751110991785,2.47078027,2428.4,2428.2,0.2056]
[1751110993064,8.17028404,2428.4,2428.2,0.2056]
[1751110995876,2.47097244,2428.2,2427.8,7.3777]
[1751110996075,8.17047621,2428.2,2427.9,0.2056]
[1751110996772,2.47106834,2428.1,2427.9,0.2056]
[1751110997196,8.17052338,2428.2,2427.9,0.2056]
[1751110999801,5.69950377,2428.0,2427.8,0.7787]
[1751111001080,8.17058438,2428.1,2427.8,0.7787]
[1751111002509,5.69950377,2428.1,2427.8,0.7787]
[1751111007230,5.69950377,2428.1,2427.8,3.25007045]
[1751111008127,5.69950377,2428.1,2427.8,0.7787]
[1751111008930,2.6766146,2428.2,2427.8,3.25006459]
[1751111009223,0.2056,2428.2,2427.8,3.25006459]
[1751111013228,0.2056,2428.2,2427.9,2.47117961]
[1751111013533,0.2056,2428.2,2427.8,3.2500173]
[1751111015312,0.2056,2428.2,2427.9,2.47125925]
[1751111021036,0.2056,2428.2,2427.8,3.25002146]
[1751111024212,0.2056,2428.2,2427.9,2.47126987]
[1751111028856,0.2056,2428.2,2427.8,3.25005278]
[1751111030164,2.6765721,2428.2,2427.8,3.25005278]
[1751111031458,0.2056,2428.2,2427.8,3.25005278]
[1751111032765,2.67657061,2428.2,2427.8,3.25005278]
[1751111033865,2.67657061,2428.2,2427.8,0.7787]
[1751111035264,2.67657061,2428.2,2427.8,3.25007055]
[1751111035456,2.67657061,2428.2,2427.8,0.7787]
[1751111037675,2.67657061,2428.2,2427.8,3.25006708]
[1751111039584,0.2056,2428.2,2427.8,3.25006708]
[1751111039883,2.67656888,2428.2,2427.8,3.25006708]
[1751111041679,2.47086567,2428.3,2427.9,2.4712077]
[1751111041879,3.2850125,2428.4,2428.0,0.2056]
[1751111044391,2.47087493,2428.3,2428.0,0.2056]
[1751111044574,2.47101001,2428.2,2428.0,0.2056]
[1751111044754,5.69950377,2428.3,2428.0,0.2056]
[1751111045086,8.1704657,2428.3,2428.0,0.2056]
[1751111045584,2.47096909,2428.2,2428.0,0.2056]
[1751111046788,2.4709911,2428.2,2428.0,0.2056]
[1751111047796,8.17042818,2428.3,2428.0,0.2056]
[1751111048104,5.69950377,2428.3,2428.0,0.2056]
[1751111048297,2.47097322,2428.2,2428.0,0.2056]
[1751111049402,5.69950377,2428.3,2428.0,0.2056]
[1751111049602,8.17042282,2428.3,2428.0,0.2056]
[1751111050494,2.47098998,2428.2,2428.0,0.2056]
[1751111052391,8.17041961,2428.3,2428.0,0.2056]
[1751111052708,9.50372241,2428.3,2428.0,0.2056]
[1751111055711,2.47097404,2428.2,2428.0,0.2056]
[1751111058522,2.47090468,2428.3,2428.0,0.2056]
[1751111058817,2.47090468,2428.3,2428.0,0.9773]
[1751111060611,2.47084297,2428.4,2428.0,0.9773]
[1751111061697,2.47077219,2428.4,2428.0,3.44843449]
[1751111065142,8.37580876,2428.5,2428.1,2.47105345]
[1751111065287,2.67630499,2428.5,2428.1,0.7854]
[1751111065612,2.67630499,2428.5,2428.1,2.47106335]
[1751111065924,2.47251746,2428.7,2428.2,0.7854]
[1751111066223,2.47246678,2428.7,2428.4,0.7854]
[1751111066804,2.47056816,2428.6,2428.4,0.7854]
[1751111069027,2.47056335,2428.6,2428.4,0.7854]
[1751111069918,2.47056335,2428.6,2428.3,0.2056]
[1751111070943,2.47066395,2428.5,2428.3,0.2056]
[1751111072328,2.47060801,2428.6,2428.3,0.2056]
[1751111074999,2.47066627,2428.5,2428.3,0.2056]
[1751111075700,2.47061722,2428.6,2428.3,0.2056]
[1751111079347,2.47061722,2428.6,2428.4,0.7613]
[1751111080653,8.17202014,2428.7,2428.4,0.7613]
[1751111087556,2.47251637,2428.7,2428.4,0.7613]
[1751111087733,0.002,2428.7,2428.4,3.23201131]
[1751111088059,0.002,2428.7,2428.5,0.8295]
[1751111092566,0.002,2428.7,2428.5,3.30015238]
[1751111092774,0.002,2428.7,2428.5,3.650738]
[1751111092940,0.002,2428.7,2428.6,0.2056]
[1751111098976,0.002,2428.7,2428.6,2.67615916]
[1751111100555,0.002,2428.7,2428.6,0.2056]
[1751111109299,0.002,2428.7,2428.6,0.9863]
[1751111110281,0.002,2428.7,2428.6,3.45685916]
[1751111110599,0.002,2428.7,2428.6,4.04962996]
[1751111117707,0.002,2428.7,2428.6,9.86792996]
[1751111118992,0.002,2428.7,2428.6,10.63962996]
[1751111130625,0.002,2428.7,2428.6,9.86692996]
[1751111130924,0.002,2428.7,2428.6,9.27415916]
[1751111136304,0.002,2428.7,2428.6,2.67615916]
[1751111136505,0.002,2428.7,2428.6,9.27515916]
[1751111138029,0.002,2428.7,2428.6,2.67615916]
[1751111138331,0.002,2428.7,2428.6,6.8046]
[1751111138756,1.71753286,2428.7,2428.6,0.2056]
[1751111139035,1.71753286,2428.7,2428.5,6.6]
[1751111139036,3.28713051,2428.6,2428.5,6.6]
[1751111139211,8.98663428,2428.6,2428.5,6.6]
[1751111140005,6.51600377,2428.6,2428.5,6.6]
[1751111140204,7.52551318,2428.6,2428.5,6.6]
[1751111140707,1.82600941,2428.6,2428.5,6.6]
[1751111141446,1.82600941,2428.6,2428.3,0.2056]
[1751111141654,1.82600941,2428.6,2428.3,6.8066]
[1751111142049,0.7667,2428.5,2428.3,6.8066]
[1751111142442,0.7667,2428.5,2428.3,0.2056]
[1751111142644,2.00566675,2428.5,2428.2,6.601]
[1751111146966,0.7667,2428.5,2428.2,9.07191827]
[1751111150980,0.2056,2428.6,2428.2,6.601]
[1751111151152,0.8103,2428.7,2428.4,2.4707163]
[1751111151354,0.8103,2428.7,2428.3,0.2056]
[1751111151542,0.002,2428.7,2428.5,2.47063536]
[1751111151746,0.002,2428.7,2428.5,2.67623536]
[1751111156394,0.002,2428.7,2428.5,0.2056]
[1751111156691,0.002,2428.7,2428.5,2.67624679]
[1751111160295,0.002,2428.7,2428.5,0.2056]
[1751111168228,0.002,2428.7,2428.6,2.47055916]
[1751111168599,0.002,2428.7,2428.6,2.67615916]
[1751111169528,0.002,2428.7,2428.6,3.26702061]
[1751111169732,0.002,2428.7,2428.6,4.02882061]
[1751111172118,0.002,2428.7,2428.6,0.2056]
[1751111172440,0.002,2428.7,2428.3,6.604]
[1751111172646,0.2076,2428.7,2428.3,9.28046112]
[1751111173023,0.2076,2428.7,2428.3,6.8096]
[1751111173644,1.36502534,2428.7,2428.3,9.28045711]
[1751111173826,0.2076,2428.7,2428.3,9.28045711]
[1751111175960,0.2076,2428.7,2428.3,9.28245711]
[1751111179165,0.2076,2428.7,2428.3,2.67645711]
[1751111179362,0.2076,2428.7,2428.3,9.28345711]
[1751111179563,0.2076,2428.7,2428.3,6.8126]
[1751111179762,1.36501934,2428.7,2428.3,6.8126]
[1751111180821,1.36501934,2428.7,2428.3,9.28345127]
[1751111188843,0.7634,2428.6,2428.4,6.605]
[1751111190463,0.7634,2428.6,2428.3,6.8106]
[1751111192343,0.7634,2428.6,2428.3,0.2056]
[1751111192570,0.21284193,2428.5,2428.1,9.07702637]
[1751111192777,0.41844193,2428.5,2428.1,9.28262637]
[1751111193627,0.8195,2428.4,2428.1,0.2056]
[1751111193858,0.8195,2428.4,2428.1,9.28266402]
[1751111194876,8.96039238,2428.2,2428.1,0.2056]
[1751111195089,8.96039238,2428.2,2427.6,0.002]
[1751111195090,0.8195,2428.0,2427.7,0.2056]
[1751111195376,3.29071904,2428.0,2427.6,0.002]
[1751111195687,3.49631904,2428.0,2427.6,0.2076]
[1751111195861,4.14768083,2428.0,2427.6,0.2076]
[1751111196748,1.67646179,2428.0,2427.6,2.67916346]
[1751111197182,4.14763866,2428.0,2427.6,0.2076]
[1751111197550,1.67646179,2428.0,2427.6,2.67917182]
[1751111197872,4.14763642,2428.0,2427.6,2.67917182]
[1751111198674,4.14763642,2428.0,2427.6,0.2076]
[1751111198878,1.67646179,2428.0,2427.6,2.67917403]
[1751111203267,4.14765228,2428.0,2427.6,0.2076]
[1751111203582,1.08127087,2427.9,2427.6,0.2076]
[1751111207831,0.7605,2427.8,2427.6,0.2076]
[1751111226005,3.23192443,2427.8,2427.6,0.002]
[1751111226301,3.43752443,2427.8,2427.6,0.002]
[1751111226473,0.45187953,2427.7,2427.6,0.002]
[1751111228182,0.9661,2427.8,2427.6,0.002]
[1751111230509,3.43752811,2427.8,2427.6,0.002]
[1751111230718,3.23192811,2427.8,2427.6,0.002]
[1751111238723,5.70241927,2427.7,2427.6,0.002]
[1751111257470,5.70241927,2427.8,2427.6,0.002]
[1751111257778,7.18555858,2427.8,2427.6,0.002]
[1751111260682,9.65693729,2427.8,2427.6,0.002]
[1751111261351,7.18555858,2427.8,2427.6,0.002]
[1751111262186,9.65694839,2427.8,2427.6,0.002]
[1751111262870,7.18555858,2427.8,2427.6,0.002]
[1751111284602,1.24141163,2427.7,2427.6,0.002]
[1751111284905,5.70241927,2427.8,2427.6,0.002]
[1751111292913,8.17380391,2427.8,2427.6,0.002]
[1751111293494,5.70241927,2427.8,2427.6,0.002]
[1751111299392,0.2056,2427.8,2427.6,0.8265]
[1751111309205,10.0,2428.1,2427.7,3.24841139]
[1751111309424,0.2056,2428.0,2427.7,3.24841139]
[1751111316516,0.2056,2428.0,2427.7,0.777]
[1751111316717,19.8474348,2428.2,2427.7,0.777]
[1751111316718,20.0530348,2428.2,2427.7,3.45402969]
[1751111319307,12.47110146,2428.1,2427.7,3.45402969]
[1751111319928,10.0,2428.1,2427.7,3.45402969]
[1751111322066,2.47107999,2428.1,2427.7,3.45402969]
[1751111325727,17.58201927,2428.2,2427.8,2.47136031]
[1751111326050,1.8796,2428.2,2427.9,0.7781]
[1751111327150,4.35057585,2428.2,2427.9,0.7781]
[1751111328967,1.8796,2428.2,2427.9,0.7781]
[1751111330774,7.58201927,2428.2,2427.9,0.7781]
[1751111331358,7.58201927,2428.2,2427.9,3.24936594]
[1751111335762,7.37641927,2428.2,2427.9,3.45496594]
[1751111340760,7.37641927,2428.2,2427.9,0.9837]
[1751111340961,9.8473963,2428.2,2427.9,0.9837]
[1751111341170,7.37641927,2428.2,2427.9,0.9837]
[1751111345763,7.37641927,2428.2,2427.9,3.45495717]
[1751111348368,7.37641927,2428.2,2427.9,0.9837]
[1751111349666,7.37641927,2428.2,2427.9,3.45495794]
[1751111352270,7.37641927,2428.2,2427.9,0.9837]
[1751111352670,7.37641927,2428.2,2427.9,3.45496297]
[1751111356775,7.37641927,2428.2,2427.9,0.9837]
[1751111359483,7.37641927,2428.2,2427.9,3.45493334]
[1751111363278,5.70241927,2428.2,2427.9,3.45493334]
[1751111366075,3.48252111,2428.4,2428.1,2.47106791]
[1751111366076,0.2056,2428.4,2428.1,2.47106791]
[1751111366650,0.2056,2428.4,2428.2,0.7545]
[1751111367769,0.2056,2428.4,2428.2,3.22546225]
[1751111369050,2.67810258,2428.7,2428.2,3.43100764]
[1751111369456,5.70241927,2428.6,2428.2,3.43100764]
[1751111371976,5.70241927,2428.6,2428.3,2.47086352]
[1751111373550,5.70241927,2428.6,2428.4,2.47075756]
[1751111374891,5.70241927,2428.6,2428.3,2.47080712]
[1751111376589,5.70241927,2428.6,2428.4,2.47076135]
[1751111376800,5.70241927,2428.6,2428.4,2.67636135]
[1751111377806,0.002,2428.7,2428.5,3.22241408]
[1751111378109,0.002,2428.7,2428.6,2.47055916]
[1751111383478,0.002,2428.7,2428.6,3.26485916]
[1751111387915,0.002,2428.7,2428.6,3.47045916]
[1751111403392,0.002,2428.7,2428.6,2.67615916]
[1751111405628,0.002,2428.7,2428.6,3.99201472]
[1751111418254,0.002,2428.7,2428.6,2.67615916]
[1751111428563,0.002,2428.7,2428.6,0.2056]
[1751111428767,0.002,2428.7,2428.6,2.67615916]
[1751111441887,5.70241927,2429.0,2428.7,2.47045581]
[1751111442062,5.70241927,2429.0,2428.8,6.601]
[1751111445080,0.5269,2428.9,2428.6,0.2056]
[1751111445266,2.47052223,2428.7,2428.4,6.8076]
[1751111445474,5.70241927,2428.5,2428.4,6.8076]
[1751111445663,5.70241927,2428.5,2428.4,0.2056]
[1751111445855,5.70241927,2428.5,2428.4,6.8136]
[1751111450275,0.5269,2428.6,2428.4,6.8136]
[1751111454381,0.5269,2428.6,2428.4,0.2056]
[1751111460094,0.5269,2428.6,2428.4,2.67633612]
[1751111460270,6.22931927,2428.6,2428.4,0.2056]
[1751111461989,6.22931927,2428.6,2428.4,2.67636257]
[1751111464004,6.22931927,2428.6,2428.4,0.2056]
[1751111469891,6.22931927,2428.6,2428.4,2.67635956]
[1751111473989,5.70241927,2428.6,2428.5,2.4706609]
[1751111474506,6.43491927,2428.8,2428.5,2.47064921]
[1751111477906,6.43491927,2428.8,2428.4,0.2056]
[1751111478106,6.43491927,2428.8,2428.4,2.67630207]
[1751111478302,5.70241927,2428.6,2428.4,0.2056]
[1751111486630,5.70241927,2428.6,2428.0,0.828]
[1751111486833,5.70241927,2428.4,2428.1,6.8096]
[1751111487538,5.70241927,2428.4,2428.1,9.28066503]
[1751111487726,5.70241927,2428.4,2428.1,10.53865424]
[1751111488221,5.70241927,2428.4,2428.1,3.93465424]
[1751111488425,5.70241927,2428.4,2428.1,9.28066503]
[1751111489695,5.70241927,2428.4,2428.1,2.67666503]
[1751111489899,5.70241927,2428.4,2428.1,9.28066503]
[1751111490240,5.70241927,2428.4,2428.1,6.8096]
[1751111490405,5.70241927,2428.4,2428.1,9.28066573]
[1751111490732,5.70241927,2428.4,2428.1,10.53865501]
[1751111491525,5.70241927,2428.4,2428.1,1.46358928]
[1751111491731,5.90801927,2428.4,2428.1,6.604]
[1751111493228,5.90801927,2428.4,2428.1,9.07506454]
[1751111497839,5.90801927,2428.4,2428.1,6.604]
[1751111498632,5.90801927,2428.4,2428.1,9.07506382]
[1751111508447,5.90801927,2428.4,2427.9,0.2056]
[1751111508646,5.90801927,2428.4,2428.0,9.07313378]
[1751111510347,5.90801927,2428.4,2428.0,2.47113378]
[1751111510526,0.5269,2428.3,2428.0,2.47113378]
[1751111510732,0.5269,2428.3,2428.1,6.602]
[1751111511754,0.5269,2428.3,2428.1,9.07306775]
[1751111515547,5.90801927,2428.4,2428.1,9.07306775]
[1751111516260,5.90801927,2428.4,2428.1,9.07301683]
[1751111517333,5.90801927,2428.4,2428.2,2.47095509]
[1751111518980,5.90801927,2428.4,2428.1,9.07301267]
[1751111527335,5.90801927,2428.4,2428.2,2.47096011]
[1751111527653,5.70241927,2428.4,2428.2,2.47096011]
[1751111532233,5.70241927,2428.4,2428.3,2.47086439]
[1751111532634,5.70241927,2428.4,2428.2,2.47091255]
[1751111542231,5.70241927,2428.4,2428.1,9.27866308]
[1751111552183,5.70241927,2428.4,2428.1,0.2056]
[1751111552478,6.22931927,2428.2,2428.1,6.602]
[1751111557979,6.22931927,2428.2,2427.9,2.4712145]
[1751111558178,6.22931927,2428.2,2428.0,6.602]
[1751111570094,6.22931927,2428.2,2428.0,9.07316855]
[1751111573302,5.90801927,2428.3,2428.1,2.47105906]
[1751111574399,5.90801927,2428.3,2428.0,9.88281059]
[1751111575100,5.90801927,2428.3,2428.0,7.4117]
[1751111575465,5.90801927,2428.3,2428.0,9.88286897]
[1751111576502,5.90801927,2428.3,2428.0,9.07316897]
[1751111582804,5.90801927,2428.3,2428.1,2.47106228]
[1751111583403,5.90801927,2428.3,2428.0,9.07311033]
[1751111583914,5.90801927,2428.3,2428.1,2.4710576]
[1751111584704,5.90801927,2428.3,2428.0,6.602]
[1751111584905,5.90801927,2428.3,2428.1,2.47106186]
[1751111588108,5.90801927,2428.3,2428.0,9.07310836]
[1751111588613,5.90801927,2428.3,2428.1,2.47105923]
[1751111592088,5.90801927,2428.3,2428.0,9.07311528]
[1751111593408,5.90801927,2428.3,2428.1,2.47106491]
[1751111593801,2.2009,2428.5,2428.1,2.47102046]
[1751111594004,5.70241927,2428.4,2428.1,2.47102046]
[1751111596408,5.70241927,2428.4,2428.0,0.9936]
[1751111596613,0.5269,2428.3,2428.0,9.27876396]
[1751111598516,0.5269,2428.3,2428.1,2.47106773]
[1751111606134,0.5269,2428.3,2428.0,9.27871052]
[1751111606337,5.70241927,2428.4,2428.0,9.27871052]
[1751111606505,5.70241927,2428.4,2428.1,2.47106312]
[1751111608538,5.70241927,2428.4,2428.0,9.27874049]
[1751111608716,5.70241927,2428.4,2428.2,2.47096253]
[1751111609127,0.2056,2428.5,2428.3,2.47084615]
[1751111609639,0.2056,2428.5,2428.2,2.47090846]
[1751111610035,5.90801927,2428.5,2428.1,3.30181015]
[1751111610443,5.90801927,2428.5,2428.2,2.47094618]
[1751111622560,5.90801927,2428.5,2428.1,3.30181756]
[1751111623062,5.90801927,2428.5,2428.1,0.8308]